[Event "45th FIDE Womens Olympiad 2024"]
[Site "Budapest"]
[Date "2024.09.16"]
[Round "6.105"]
[White "Ptacnikova, Lenka"]
[Black "Zherebtsova, Alexandra"]
[Result "0-1"]
[ECO "A14"]
[WhiteElo "2065"]
[BlackElo "2239"]
[Annotator "TA"]
[PlyCount "132"]
[EventDate "2024.09.05"]
[EventType "team-tourn"]
[EventCountry "HUN"]
[SourceTitle "playchess.com"]
[Source "ChessBase"]
[SourceQuality "1"]
[WhiteTeam "Iceland"]
[BlackTeam "Montenegro"]
[WhiteTeamCountry "ISL"]
[BlackTeamCountry "MNE"]
[TimeControl "40/5400+30:1800+30"]

{[%evp 21,132,-7,-9,-22,0,0,5,26,-6,4,50,60,75,55,91,-118,8,29,28,40,0,-47,-65,-52,-50,-165,-169,-227,-225,-320,-316,-306,-307,-316,-325,-314,-325,-301,-283,-262,-209,-196,-193,-193,0,-189,0,-198,0,0,0,0,0,0,0,0,0,0,0,-37,81,-37,-37,-37,-37,-37,-37,-37,-12,-18,-12,-12,-12,-37,-37,-37,-37,-37,-37,-45,-37,-45,-45,-82,-56,-164,-164,-75,-37,-530,-420,-627,-563,-441,-417,-805,-542,-850,-945,-949,-617,-889,-548,-652,-414,-636,-642,-602,-449,-9910,-7040,-29985,-29986]} 1. c4 e6 2. g3 Nf6 3. Bg2 d5 4. Nf3 Be7 5. O-O O-O 6. b3 d4 7. e3 c5 {A14: English Opening: 1...e6 with b3 by White.} 8. Ne5 {is the new trend.} Qc7 9. f4 Nbd7 10. Nd3 e5 11. g4 exf4 12. g5 Ne8 13. exd4 $1 Bxg5 14. Nc3 Nef6 15. Nb5 $146 ({Predecessor:} 15. Qf3 cxd4 16. Nb5 Qa5 17. Ba3 a6 18. Bxf8 Nxf8 19. Nd6 Qxd2 20. Rae1 h5 21. Nxc8 Rxc8 {1-0 Oparin,G (2671)-Hakobyan,A (2619) USA-chT College final 2024 (3.1)}) 15... Qb6 (15... Qb8 $11) 16. Ba3 $14 cxd4 $1 17. Nd6 (17. Bxf8 Nxf8 18. a4 Bg4 $11) 17... Rd8 18. Nxf4 $2 (18. Qe1 $16) 18... d3+ (18... Ne5 $1 $17 19. Nxc8 Rdxc8 (19... Raxc8 20. Be7 $17)) 19. Kh1 $11 Nc5 20. Nxc8 Raxc8 21. Bxc5 (21. Nd5 $11 Qa6 22. Bb4 Nxd5 23. Bxd5) 21... Rxc5 $15 22. Nd5 Qe6 23. Re1 (23. Qe1 $15) 23... Qd6 $19 24. Rc1 (24. Rf1 {keeps fighting.}) 24... Nxd5 $1 $19 25. Bxd5 (25. cxd5 $142 Rxd5 26. Qf3 Bxd2 27. Rf1) 25... Rxd5 $19 26. cxd5 Qxd5+ 27. Kg1 Bf6 (27... Bf4 28. Rc4 Qg5+ 29. Kh1 $19) 28. h3 Bd4+ 29. Kh2 Be5+ 30. Kg1 h5 31. Rf1 Bd4+ 32. Kh2 Be5+ 33. Kg1 Bd4+ 34. Kh2 Re8 $2 (34... Bb2 $1 $19 35. Rb1 Be5+ 36. Kg1 Bf4) 35. Qf3 $11 Re2+ 36. Kh1 Qxf3+ 37. Rxf3 Rxd2 38. Rc8+ Kh7 39. Rd8 Rd1+ 40. Kg2 Rg1+ 41. Kh2 d2 42. Rxd4 d1=Q (42... d1=R {simplifies} 43. Rxd1 Rxd1 44. Rxf7 Kh6) 43. Rxd1 Rxd1 44. Rxf7 Rd2+ 45. Kg3 Rxa2 46. Rxb7 Kh6 47. Rc7 Ra3 48. Kg2 h4 49. Rd7 Kg6 50. Re7 Kf6 51. Rc7 a5 52. Ra7 g6 (52... Rxb3 53. Ra6+ Kf7 54. Rxa5 $11) 53. Ra6+ (53. Ra8 $15) 53... Kf5 $19 54. Rb6 ({Better is} 54. Rd6 $19) 54... g5 55. Rc6 $2 {[%mdl 8192] [#]} (55. Rb5+ $1 $15 Kf4 56. Rc5) 55... Ra2+ $1 $19 (55... Rxb3 56. Rc5+ Kf4 57. Rxa5 $11) 56. Kg1 {[#]} (56. Kf1 $142 Rb2 57. Rc5+ Kf4 58. Rc3) 56... Re2 $1 $19 57. Rc4 Re4 58. Rc5+ (58. Rc3 $142 Kf4 59. Kf2) 58... Re5 $19 59. Rc4 Rb5 60. Kg2 Ke5 (60... Rxb3 61. Rc5+ Kf4 62. Rxa5 $11) 61. Rg4 Kf6 (61... Rxb3 62. Rxg5+ Kf4 63. Rxa5 $11) 62. Ra4 Ke6 ({Stronger than} 62... Rxb3 63. Rxa5 Rg3+ 64. Kh2 $11) 63. Ra2 (63. Kg1 $142 Kd6 (63... Rxb3 64. Rxa5 Kf6 65. Kh2 $11) 64. Kf2) 63... Kd5 $19 ({Not} 63... Rxb3 64. Rxa5 Kf6 65. Ra8 $11) 64. Ra4 Kc6 ({And not} 64... Rxb3 65. Rxa5+ Ke4 66. Rxg5 $11) 65. Rg4 (65. Rc4+ $142 Kd5 66. Rg4) 65... Rxb3 $19 66. Rxg5 Rg3+ 0-1

[Event "45th FIDE Womens Olympiad 2024"]
[Site "Budapest"]
[Date "2024.09.16"]
[Round "6.106"]
[White "Skvortsova, Alena"]
[Black "Johannsdottir, Johanna Bjorg"]
[Result "1-0"]
[ECO "B30"]
[WhiteElo "2179"]
[BlackElo "2013"]
[Annotator "TA"]
[PlyCount "89"]
[EventDate "2024.09.05"]
[EventType "team-tourn"]
[EventCountry "HUN"]
[SourceTitle "playchess.com"]
[Source "ChessBase"]
[SourceQuality "1"]
[WhiteTeam "Montenegro"]
[BlackTeam "Iceland"]
[WhiteTeamCountry "MNE"]
[BlackTeamCountry "ISL"]
[TimeControl "40/5400+30:1800+30"]

{[%evp 9,89,39,35,34,28,39,34,37,25,32,44,17,33,31,39,36,89,79,83,82,95,63,67,0,0,0,0,0,108,125,141,165,155,147,137,143,123,100,104,54,39,58,46,47,426,406,548,544,526,428,2263,887,786,324,308,304,406,418,403,411,616,610,633,633,760,739,1009,712,833,798,822,828,29970,29970,29970,29972,29963,29966,29987,29988,29990,29990]} 1. e4 c5 2. Nf3 Nc6 3. Bb5 Nf6 4. Nc3 g6 5. e5 Ng4 6. Qe2 Bg7 7. Bxc6 dxc6 8. h3 {White is slightly better.} Nh6 9. g4 {Prevents Nf5} O-O 10. b3 f6 11. Bb2 fxe5 12. Nxe5 Qc7 ({Black should try} 12... Nf7 $14 13. Nxf7 Rxf7) 13. Na4 $16 {A dynamic duo of knights.} b6 14. O-O-O Ba6 15. Qe3 (15. Qxa6 {simplifies} Bxe5 16. Bxe5 Qxe5 17. Nc3) 15... Nf7 16. f4 {White is more active.} (16. Nf3 $14) 16... Nxe5 $11 17. Bxe5 Bxe5 18. fxe5 c4 {[#]} (18... Qd7 $11) 19. h4 $1 $16 cxb3 20. axb3 Rf7 {[%cal Bf8f7,Bf7g7,Bg7g6][%mdl 32]} 21. h5 {aiming for hxg6.} Rg7 22. hxg6 Rxg6 {[%cal Oc6c5]} 23. g5 {Rh6 is the strong threat.} Rf8 24. Rh6 (24. Nc3 $16) 24... Rf5 $14 25. Rxg6+ hxg6 26. d4 $36 {[%mdl 2048] White fights for an advantage.} e6 $2 {[%mdl 8192] This costs Black the game.} (26... c5 $14) 27. Nc3 $18 {[%cal Ba4c3,Bc3e4,Be4f6][%mdl 32] [#] Ne4 would now be deadly.} Qh7 28. Ne4 {Hoping for Nf6+.} Qh4 29. Kb2 Qh5 (29... Bb5 $142 30. c4 Bxc4) 30. Ra1 (30. Nf6+ $142 Rxf6 31. exf6 Qh7 32. Rh1 (32. Qxe6+ Qf7 33. Qxc6 Bb7 34. Qd6 Qf8 35. Qd7 Qf7 36. Qd8+ Qf8 37. f7+ Kg7) 32... Qf7 33. Qe5 Bc8 34. Qh2 Kf8 35. Qd6+ Kg8 36. Qd8+ (36. Qxc6 Bb7 $16) 36... Qf8 37. Rh8+ (37. f7+ Kxf7 38. Rf1+ Kg8 39. Rxf8+ Kh7 40. Rf7#) 37... Kxh8 38. Qxf8+ Kh7 39. Qg7#) 30... Qe2 31. Qxe2 (31. Nf6+ $142 Rxf6 32. Qxe2 Bxe2 33. exf6 (33. gxf6 a5 $18)) 31... Bxe2 32. Rxa7 {[%mdl 4096] Endgame. KRB-KRN} Rf4 33. Nf6+ Kf8 34. c3 b5 (34... Bg4 $142 35. Ka3 Bh3) 35. Ka3 Rf3 36. Kb4 Rd3 37. Nd7+ Ke8 38. Nc5 {[%csl LRd3,LRe6]} Rg3 39. Nxe6 {Ng7+ would kill now.} Bd1 40. Ng7+ Kf8 41. e6 {[%cal Be5e6,Be6e7][%mdl 32] White mates.} Re3 42. Kc5 Bxb3 43. Kxc6 Rxc3+ 44. Kd6 Re3 45. e7+ {Weighted Error Value: White=0.23 (precise) /Black=0.44.  Loses game:     	---       	Black=1      Mistake:       	White=3     	Black=4      Inaccurate:     	White=1     	Black=2      OK:         	White=14    	Black=8      Best:        	White=2     	Black=3      Strong:       	White=1     	---} 1-0

[Event "45th FIDE Womens Olympiad 2024"]
[Site "Budapest"]
[Date "2024.09.16"]
[Round "6.107"]
[White "Thorsteinsdottir, Hallgerdur"]
[Black "Milovic, Aleksandra"]
[Result "1-0"]
[ECO "A34"]
[WhiteElo "1938"]
[BlackElo "2121"]
[Annotator "NA"]
[PlyCount "75"]
[EventDate "2024.09.05"]
[EventType "team-tourn"]
[EventCountry "HUN"]
[SourceTitle "playchess.com"]
[Source "ChessBase"]
[SourceQuality "1"]
[WhiteTeam "Iceland"]
[BlackTeam "Montenegro"]
[WhiteTeamCountry "ISL"]
[BlackTeamCountry "MNE"]
[TimeControl "40/5400+30:1800+30"]

1. e4 c5 2. Nf3 e6 3. c4 Nc6 4. Nc3 Nf6 5. Be2 d5 6. exd5 exd5 7. d4 dxc4 8. d5 Nb4 9. Bxc4 Bd6 10. a3 Na6 11. O-O O-O 12. Bg5 h6 13. Bh4 Bf5 14. Re1 Nc7 15. Ne5 a6 16. a4 Rb8 17. Qf3 Qc8 18. Bxf6 gxf6 19. Bd3 Bxd3 20. Nxd3 f5 21. Ne5 Ne8 22. Qh5 Kg7 23. Nc4 Kh7 24. Rxe8 Bxh2+ 25. Kxh2 Qxe8 26. Qxf5+ Kg7 27. Ne4 Qe7 28. Ra3 Rg8 29. d6 Qe6 30. Rg3+ Kh8 31. Rxg8+ Kxg8 32. Qxe6 fxe6 33. Nxc5 b6 34. Nxa6 Rd8 35. Nb4 Kf8 36. Nc6 Rd7 37. N6e5 Rd8 38. d7 1-0

[Event "45th FIDE Womens Olympiad 2024"]
[Site "Budapest"]
[Date "2024.09.16"]
[Round "6.108"]
[White "Popovic, Mateja"]
[Black "Briem, Gudrun Fanney"]
[Result "1-0"]
[ECO "D13"]
[WhiteElo "1932"]
[BlackElo "1764"]
[Annotator "NA"]
[PlyCount "79"]
[EventDate "2024.09.05"]
[EventType "team-tourn"]
[EventCountry "HUN"]
[SourceTitle "playchess.com"]
[Source "ChessBase"]
[SourceQuality "1"]
[WhiteTeam "Montenegro"]
[BlackTeam "Iceland"]
[WhiteTeamCountry "MNE"]
[BlackTeamCountry "ISL"]
[TimeControl "40/5400+30:1800+30"]

1. d4 d5 2. c4 c6 3. cxd5 cxd5 4. Nc3 Nf6 5. Nf3 Nc6 6. Bf4 a6 7. e3 Bf5 8. Qb3 Na5 9. Qa4+ Bd7 10. Qc2 e6 11. Bd3 Be7 12. O-O O-O 13. Ne5 Rc8 14. Rac1 b5 15. a3 Nc4 16. Qe2 h6 17. e4 Nxe4 18. Nxe4 dxe4 19. Qxe4 f5 20. Qb7 Nxe5 21. Bxe5 Rxc1 22. Rxc1 Bc8 23. Rxc8 Qxc8 24. Qxe7 Rf7 25. Qc5 Qd7 26. h3 Rf8 27. Qb6 Qc8 28. Kh2 Rf7 29. Qc5 Qb7 30. Be2 Rf8 31. Bf3 Qd7 32. Bc6 Qc8 33. Qd6 Kh7 34. Qe7 Rg8 35. Bd7 Qb7 36. Qxe6 Rd8 37. Qxf5+ Kh8 38. Be6 b4 39. Qg6 b3 40. Qxh6# 1-0

[Event "45th FIDE Womens Olympiad 2024"]
[Site "Budapest"]
[Date "2024.09.16"]
[Round "6.109"]
[White "Terao, Juliana Sayumi"]
[Black "Shohradova, Lala"]
[Result "1/2-1/2"]
[ECO "B22"]
[WhiteElo "2161"]
[BlackElo "2030"]
[Annotator "TA"]
[PlyCount "179"]
[EventDate "2024.09.05"]
[EventType "team-tourn"]
[EventCountry "HUN"]
[SourceTitle "playchess.com"]
[Source "ChessBase"]
[SourceQuality "1"]
[WhiteTeam "Brazil"]
[BlackTeam "Turkmenistan"]
[WhiteTeamCountry "BRA"]
[BlackTeamCountry "TKM"]
[TimeControl "40/5400+30:1800+30"]

{[%evp 71,179,41,39,49,41,-614,-591,-1294,-672,-637,-11,-16,-20,-3,0,0,0,-13,-8,-181,-181,-182,-180,-190,-137,-130,-133,-177,-77,-85,-73,-67,0,-91,-97,-79,-79,-87,-93,-93,-70,-93,0,0,14,0,-16,-16,-16,-16,-16,-16,55,58,49,-15,-15,-15,-15,-45,-21,-22,0,0,0,-11,-11,-11,-11,-11,-11,-11,-11,-11,-11,-11,-8,-11,-11,-11,-9,-9,-9,-9,-9,-9,-9,-9,-9,-9,-9,-9,-9,-9,0,0,0,0,0,0,0,0,0,0,0,0,0,0,0,0]} 1. e4 e6 2. d4 d5 3. Nd2 c5 4. exd5 Qxd5 5. dxc5 Qxc5 6. Ngf3 Nf6 7. Bd3 Be7 8. O-O Nbd7 9. Qe2 O-O 10. c3 b6 {B22: Sicilian: 2 c3.} 11. Ne4 Qc7 12. Ng3 $146 ({Predecessor:} 12. Nxf6+ Nxf6 13. Be3 Bb7 14. Bd4 Rfd8 15. Rfe1 Rd5 16. Ne5 Bd6 17. h3 Rd8 18. f4 Bc5 19. Bxc5 Qxc5+ 20. Kh2 Qc7 21. Rad1 g6 22. Qf2 Nh5 23. g3 f6 {0-1 Wang,H (2722)-Shankland,S (2710) Gashimov Memorial Blitz 8th 2022 (4)}) 12... Bb7 13. Bc2 Rfd8 14. Nd4 Bc5 15. Be3 Nd5 16. Ne4 Bxd4 17. Bxd4 f5 18. Ng5 Nf4 19. Qe3 Nf8 20. Be5 Qc6 21. f3 Nd5 22. Qf2 h6 23. Nh3 Ng6 24. Rfe1 b5 25. Qg3 Kh7 26. a3 a5 27. Bd4 b4 28. axb4 axb4 29. Rxa8 Bxa8 30. Bb3 Rd7 31. cxb4 Nf8 32. Bc5 Ng6 33. Qb8 Bb7 34. Qg3 e5 35. Qf2 Qf6 36. Bc2 Ngf4 37. Nxf4 Nxf4 38. Qe3 $2 {[%mdl 8192]} (38. b5 $14) 38... Qg5 $1 $19 39. g3 Nh3+ 40. Kh1 Qg4 $2 (40... Rd2 $19 41. Bd3 Qxe3 (41... Rxb2 $2 42. Re2 $19) (41... Nf2+ $2 42. Qxf2 Rxf2 43. Bxf2 $19) 42. Bxf5+ g6 43. Bxg6+ Kxg6 44. Rxe3 Ng5 (44... Rxb2 $2 45. Rd3 $19)) 41. Be4 $1 $11 Bxe4 42. Qxe4 Qh5 43. Qe3 (43. Qxe5 $2 Qxf3#) 43... Ng5 44. Rf1 Qh3 45. Ra1 $2 {[#]} (45. Rg1 $1 $11 {and White stays safe.}) 45... e4 $1 $19 46. fxe4 Nxe4 47. Qf3 (47. Bd4 $2 Rxd4 48. Rg1 Rd2 $19 (48... Rxb4 $2 49. Rg2 $19) (48... Rxb4 $2 49. Rg2 $19)) 47... Rd2 (47... Nxc5 $19 48. bxc5 Rd2) 48. Bg1 $17 Rxb2 49. Rd1 Rc2 (49... Ng5 $1 $19 {[%cal Rg5f3] is more deadly.} 50. Qf1 Rxb4 (50... Qg4 $2 51. Qd3 $19) 51. Qxh3 Nxh3) 50. b5 $17 Rc3 51. Be3 Rc2 52. Bg1 Ng5 (52... Kg6 {seems wilder.} 53. b6 h5 54. b7 Rb2) 53. Qf1 Qg4 54. Rd4 Ne4 55. Rd3 Rb2 (55... Qg6 {simplifies} 56. b6 Rb2 57. Re3 Rxb6 58. Rxe4 fxe4 59. Bxb6 Qxb6 60. Qe2 Qd4) 56. b6 {[#]} Nd2 ({Black should play} 56... Qg6 $1 $17) 57. Qf4 $11 Qg6 58. Rd6 (58. Rxd2 $2 Qc6+) 58... Qf7 $1 59. Qd4 $1 (59. Qe5 $2 Nc4 60. Qd5 Nxd6 61. Qxf7 Nxf7 $19) 59... Qh5 60. g4 (60. Rxh6+ $2 Qxh6 61. Qd5 Qh5 $19) 60... Qh3 (60... Qxg4 61. Qxg4 fxg4 62. b7 Rxb7 63. Rxd2 $18) 61. Qf4 (61. Qxb2 $2 Qf3#) ({Avoid the trap} 61. Qf2 $2 Qxg4 62. Rd4 Qf3+ 63. Qxf3 Nxf3 $19) 61... Qxg4 (61... Qf3+ $1 $11 62. Qxf3 Nxf3 63. gxf5 Rb1) 62. Qxg4 $14 fxg4 63. Bd4 (63. b7 $1 $14 Rxb7 64. Rxd2) 63... Rb1+ $11 64. Kg2 Nf3 65. Bc3 Rb3 66. Rc6 $1 Ng5 67. Bd4 Rb4 68. Bc5 Rb2+ 69. Kg3 Ne4+ 70. Kxg4 Nxc5 71. Rxc5 Rxb6 72. h4 Rb4+ 73. Kg3 Kg6 74. Ra5 Rb3+ 75. Kg4 h5+ 76. Kf4 $1 Kh6 77. Ra4 Rh3 78. Kf5 Rf3+ 79. Ke5 Rg3 80. Kf5 g6+ 81. Ke5 $1 Rg1 82. Rf4 g5 83. Rf6+ Kg7 84. Rf5 Kg6 85. Rf6+ Kg7 86. Rf5 Re1+ (86... Kg6 $5 87. Rf6+ $8 Kg7 $11) 87. Kd4 gxh4 88. Rxh5 Ra1 89. Ke3 Kg6 90. Rxh4 1/2-1/2

[Event "45th FIDE Womens Olympiad 2024"]
[Site "Budapest"]
[Date "2024.09.16"]
[Round "6.110"]
[White "Agajanova, Meryem"]
[Black "Alboredo, Julia"]
[Result "1/2-1/2"]
[ECO "E00"]
[WhiteElo "2007"]
[BlackElo "2127"]
[Annotator "NA"]
[PlyCount "92"]
[EventDate "2024.09.05"]
[EventType "team-tourn"]
[EventCountry "HUN"]
[SourceTitle "playchess.com"]
[Source "ChessBase"]
[SourceQuality "1"]
[WhiteTeam "Turkmenistan"]
[BlackTeam "Brazil"]
[WhiteTeamCountry "TKM"]
[BlackTeamCountry "BRA"]
[TimeControl "40/5400+30:1800+30"]

1. d4 Nf6 2. c4 e6 3. g3 d5 4. Bg2 Bb4+ 5. Bd2 Be7 6. Nf3 Nbd7 7. O-O c6 8. Qc2 Ne4 9. Bc3 f5 10. Nbd2 a5 11. Rad1 O-O 12. b3 Nxc3 13. Qxc3 g5 14. Qe3 Kf7 15. Qd3 Bd6 16. cxd5 cxd5 17. Nb1 g4 18. Ne1 Nf6 19. e3 b5 20. Qc2 b4 21. Nd3 Ba6 22. Rfe1 h5 23. Nf4 Rc8 24. Qb2 h4 25. Nd2 Rh8 26. Rc1 hxg3 27. hxg3 Qf8 28. Rxc8 Bxc8 29. Qc2 Bd7 30. Qd3 Qh6 31. Nf1 Ne4 32. Qa6 Ke7 33. Qxa5 Ng5 34. Nd2 Qh2+ 35. Kf1 Rb8 36. Ke2 Bxf4 37. exf4 Qxg2 38. fxg5 f4 39. Qc5+ Ke8 40. Qc7 f3+ 41. Kd1 Rc8 42. Qd6 Qxf2 43. Rxe6+ Bxe6 44. Qxe6+ Kd8 45. Qd6+ Ke8 46. Qe6+ Kd8 1/2-1/2

[Event "45th FIDE Womens Olympiad 2024"]
[Site "Budapest"]
[Date "2024.09.16"]
[Round "6.111"]
[White "Tamarozi, Isabelle"]
[Black "Shohradova, Leyla"]
[Result "0-1"]
[ECO "C16"]
[WhiteElo "2059"]
[BlackElo "1873"]
[Annotator "NA"]
[PlyCount "100"]
[EventDate "2024.09.05"]
[EventType "team-tourn"]
[EventCountry "HUN"]
[SourceTitle "playchess.com"]
[Source "ChessBase"]
[SourceQuality "1"]
[WhiteTeam "Brazil"]
[BlackTeam "Turkmenistan"]
[WhiteTeamCountry "BRA"]
[BlackTeamCountry "TKM"]
[TimeControl "40/5400+30:1800+30"]

1. e4 e6 2. d4 d5 3. Nc3 Bb4 4. e5 Ne7 5. a3 Bxc3+ 6. bxc3 b6 7. h4 Ba6 8. h5 h6 9. Qg4 Bxf1 10. Kxf1 Nf5 11. a4 Nc6 12. Ne2 Qd7 13. Nf4 O-O-O 14. g3 Na5 15. Kg2 Nc4 16. Re1 a5 17. Kh2 Rdg8 18. Qe2 g6 19. Rb1 g5 20. Nd3 Qxa4 21. g4 Ne7 22. Be3 Qc6 23. Ra1 Rf8 24. Bc1 f6 25. Ba3 Nxa3 26. exf6 Qd6+ 27. Ne5 Rxf6 28. Qa6+ Kd8 29. Rxa3 Qxa3 30. Qa8+ Nc8 31. Nc6+ Kd7 32. Ne5+ Ke7 33. Ng6+ Rxg6 34. hxg6 Qd6+ 35. Kg2 Kd7 36. Re5 Rg8 37. Qa6 Ne7 38. Qb5+ Qc6 39. Qb3 Nxg6 40. Re3 Nf4+ 41. Kg1 Ra8 42. Qa3 Qd6 43. Qa4+ c6 44. c4 dxc4 45. c3 b5 46. Qc2 Nd3 47. Qe2 Rf8 48. f3 a4 49. Qg2 a3 50. Kh1 Qf4 0-1

[Event "45th FIDE Womens Olympiad 2024"]
[Site "Budapest"]
[Date "2024.09.16"]
[Round "6.112"]
[White "Arazmedova, Enesh"]
[Black "Dias, Clara"]
[Result "1-0"]
[ECO "B99"]
[WhiteElo "1761"]
[BlackElo "1954"]
[Annotator "NA"]
[PlyCount "103"]
[EventDate "2024.09.05"]
[EventType "team-tourn"]
[EventCountry "HUN"]
[SourceTitle "playchess.com"]
[Source "ChessBase"]
[SourceQuality "1"]
[WhiteTeam "Turkmenistan"]
[BlackTeam "Brazil"]
[WhiteTeamCountry "TKM"]
[BlackTeamCountry "BRA"]
[TimeControl "40/5400+30:1800+30"]

1. e4 c5 2. Nf3 d6 3. d4 cxd4 4. Nxd4 Nf6 5. Nc3 a6 6. Bg5 e6 7. f4 Be7 8. Qf3 Qc7 9. O-O-O Nbd7 10. g4 b5 11. Bxf6 Nxf6 12. g5 Nd7 13. f5 Bxg5+ 14. Kb1 Ne5 15. Qh5 Bf6 16. Nxe6 Bxe6 17. fxe6 O-O 18. Nd5 Qd8 19. Bh3 fxe6 20. Bxe6+ Kh8 21. Nxf6 Rxf6 22. Bd5 Rc8 23. Rhf1 Rg6 24. Qe2 Qe7 25. Rf5 h6 26. Rdf1 Rb8 27. h4 Kh7 28. Qf2 Ng4 29. Qf4 Qxh4 30. e5 dxe5 31. Qe4 Qg3 32. Bf7 Nf6 33. Bxg6+ Qxg6 34. Qxe5 Rd8 35. a3 Rd2 36. Qc7 Rd7 37. Qc6 Re7 38. Qxa6 Re1+ 39. Ka2 Qf7+ 40. b3 Re2 41. Kb2 Qc7 42. Rc1 Ne4 43. Qxb5 Qc3+ 44. Kb1 Qh3 45. Rc5 Qe3 46. Rc7 Nd2+ 47. Ka2 Rg2 48. Qf5+ Rg6 49. Rc6 Qg3 50. Rd1 Nf3 51. Rd3 Qg2 52. Rxf3 1-0

[Event "45th FIDE Womens Olympiad 2024"]
[Site "Budapest"]
[Date "2024.09.16"]
[Round "6.113"]
[White "Martynkova, Olena"]
[Black "Caxita, Esperanca"]
[Result "1-0"]
[ECO "D15"]
[WhiteElo "2176"]
[BlackElo "1932"]
[Annotator "TA"]
[PlyCount "73"]
[EventDate "2024.09.05"]
[EventType "team-tourn"]
[EventCountry "HUN"]
[SourceTitle "playchess.com"]
[Source "ChessBase"]
[SourceQuality "1"]
[WhiteTeam "Lithuania"]
[BlackTeam "Angola"]
[WhiteTeamCountry "LTU"]
[BlackTeamCountry "ANG"]
[TimeControl "40/5400+30:1800+30"]

{[%evp 15,73,39,33,26,37,32,21,0,36,0,60,61,61,52,53,18,98,95,96,93,101,27,46,41,42,39,36,47,52,33,74,66,250,231,206,198,338,268,270,270,284,273,389,377,472,473,759,745,755,735,1284,1303,1026,1085,4814,4814,4133,795,765,754]} 1. d4 d5 2. Nf3 Nf6 3. c4 c6 4. Nc3 a6 5. c5 Nbd7 6. Bf4 g6 7. h3 Bg7 8. e3 O-O 9. Bd3 {Wards off Ne4} Re8 10. g4 {Against Nh5} b6 11. cxb6 {The position is equal.} Qxb6 12. O-O Bb7 (12... h5 $11) 13. Na4 $14 Qa7 14. Rc1 Rac8 15. b4 Nb6 (15... a5 $11 {keeps the balance.}) 16. Ne5 Nfd7 17. Nc5 $1 {White is much more active.} Bxe5 18. dxe5 ({Better is} 18. Bxe5 $16 Nxe5 19. dxe5) 18... Nxc5 $1 $11 19. bxc5 {Black is weak on the dark squares} Nd7 {[%cal Oa6a5]} 20. Qc2 {[%cal Oe5e6] Threatens to win with e6!} e6 $1 21. Qc3 $36 {[%mdl 2048] White is more active.} a5 22. e4 a4 23. Bh6 Ba6 $2 {[#] This costs Black the game.} (23... Rc7 $14) 24. Bxa6 $1 $18 Qxa6 {[#]} 25. exd5 $1 Qb7 (25... cxd5 {was worth a try.} 26. c6 Nb8) 26. dxe6 Rxe6 27. f4 Qc7 28. Rfd1 Nf8 (28... Rce8 $142 29. Qd4 Nf8 30. Qxa4 Qe7) 29. Rd6 Rce8 {[%cal Bc8e8,Be8e5,Be5f5][%mdl 32]} 30. f5 {White is clearly winning.} gxf5 (30... Rxe5 $142 31. Bf4 R5e7 32. Rxg6+ hxg6 33. Bxc7 Rxc7) 31. gxf5 {And now Bxf8 would win.} Rxh6 32. Rxh6 Qxe5 33. Qxe5 Rxe5 34. Rxc6 {aiming for Rc8.} Rxf5 {KRR-KRN} 35. Rc8 {Threatening mate with c6.} Kg7 36. c6 (36. Rxf8 $142 Kxf8 37. c6) 36... Ne6 37. c7 {Weighted Error Value: White=0.14 (very precise) /Black=0.44.  Loses game:     	---       	Black=1      Mistake:       	White=1     	Black=5      Inaccurate:     	White=2     	Black=2      OK:         	White=8     	Black=7      Best:        	White=1     	---        Strong:       	White=3     	Black=2} 1-0

[Event "45th FIDE Womens Olympiad 2024"]
[Site "Budapest"]
[Date "2024.09.16"]
[Round "6.114"]
[White "Junior, Ednasia"]
[Black "Limontaite, Simona"]
[Result "1/2-1/2"]
[ECO "B30"]
[WhiteElo "1888"]
[BlackElo "2177"]
[Annotator "TA"]
[PlyCount "63"]
[EventDate "2024.09.05"]
[EventType "team-tourn"]
[EventCountry "HUN"]
[SourceTitle "playchess.com"]
[Source "ChessBase"]
[SourceQuality "1"]
[WhiteTeam "Angola"]
[BlackTeam "Lithuania"]
[WhiteTeamCountry "ANG"]
[BlackTeamCountry "LTU"]
[TimeControl "40/5400+30:1800+30"]

{[%evp 9,63,-9,-7,-11,-6,-17,-15,-10,0,-1,0,-11,-18,-19,-14,-15,-14,-15,0,-17,-26,-45,-13,-15,33,-4,31,35,29,0,0,-25,0,0,0,0,0,0,0,0,0,0,0,-19,-2,0,0,0,-4,-30,-27,-84,2,0,0,-19]} 1. e4 c5 2. Nf3 Nc6 3. c4 e5 4. g3 g6 5. Bg2 Bg7 6. d3 Nge7 7. Be3 d6 8. Qd2 h6 9. Nc3 Rb8 10. Rc1 a6 11. O-O b5 12. b3 Nd4 13. Ne1 O-O 14. f4 ({Reject} 14. Bxh6 Bxh6 15. Qxh6 b4 $15) 14... exf4 15. Bxf4 g5 16. Be3 Ng6 (16... Bg4 $11 {might be stronger.} 17. Nf3 Bxf3 18. Bxf3 b4) 17. Kh1 Be6 18. Nd5 a5 19. Nf3 Nxf3 20. Rxf3 Ne5 21. Rff1 a4 22. d4 cxd4 23. Bxd4 axb3 24. axb3 bxc4 25. bxc4 Rb3 26. c5 {[#] Threatens to win with Qc2.} dxc5 (26... Rd3 {is more complex.} 27. Qb2 Nc4 28. Rxc4 Rxd4 29. Rxd4 dxc5 30. Nf6+ Qxf6 31. Rxf6 Bxf6 32. Bf1 Bxd4 33. Qb6 Ra8) 27. Bxc5 Rd3 28. Qc2 Re8 29. Rf2 Kh8 30. Bf1 (30. Qb1 $11) 30... Rf3 ({Better is} 30... Rxd5 $17 31. exd5 Bxd5+ 32. Kg1 (32. Bg2 Nd3 $17) 32... Nf3+ 33. Rxf3 Bxf3) 31. Rxf3 Nxf3 32. Rd1 {Weighted Error Value: White=0.13 (very precise) /Black=0.12 (very precise) .  Mistake:       	White=1     	Black=2      Inaccurate:     	White=3     	Black=2      OK:         	White=8     	Black=10     Best:        	---       	Black=1} 1/2-1/2

[Event "45th FIDE Womens Olympiad 2024"]
[Site "Budapest"]
[Date "2024.09.16"]
[Round "6.115"]
[White "Simkunaite, Gabija"]
[Black "Pires, Luzia"]
[Result "0-1"]
[ECO "B22"]
[WhiteElo "2005"]
[BlackElo "1877"]
[Annotator "NA"]
[PlyCount "88"]
[EventDate "2024.09.05"]
[EventType "team-tourn"]
[EventCountry "HUN"]
[SourceTitle "playchess.com"]
[Source "ChessBase"]
[SourceQuality "1"]
[WhiteTeam "Lithuania"]
[BlackTeam "Angola"]
[WhiteTeamCountry "LTU"]
[BlackTeamCountry "ANG"]
[TimeControl "40/5400+30:1800+30"]

1. e4 c5 2. c3 d5 3. exd5 Qxd5 4. d4 cxd4 5. cxd4 Nc6 6. Nf3 e6 7. Nc3 Bb4 8. Bd2 Qd8 9. Bb5 Nge7 10. O-O O-O 11. Bg5 Qa5 12. Bxc6 Nxc6 13. Ne2 h6 14. a3 Be7 15. b4 Qf5 16. Ng3 Qd5 17. Bxe7 Nxe7 18. Re1 Bd7 19. Re5 Qd6 20. Ne4 Qb6 21. Rh5 Bc6 22. Qd3 Rfd8 23. Rc5 a6 24. Ned2 Rd5 25. Nc4 Qd8 26. Rxd5 Bxd5 27. Rd1 Rc8 28. Nce5 Rc7 29. b5 axb5 30. Qxb5 Qc8 31. h3 Rc3 32. Qb4 Nf5 33. Kh2 Qc7 34. Kg1 Rb3 35. Qa4 b5 36. Qa6 Qc2 37. Rf1 f6 38. Ng4 Rxf3 39. gxf3 Nxd4 40. Kh2 Nxf3+ 41. Kg3 Qc7+ 42. Kg2 h5 43. Rd1 hxg4 44. Rxd5 Qh2+ 0-1